[Event "12th New York International 2019"]
[Site "New York"]
[Date "2019.07.12"]
[Round "4.2"]
[White "Zhou, Liran"]
[Black "Paragua, Mark"]
[Result "1/2-1/2"]
[ECO "B19"]
[WhiteElo "2314"]
[BlackElo "2503"]
[Annotator "ChessBase"]
[PlyCount "125"]
[EventDate "2019.07.11"]
[EventType "swiss"]
[EventCountry "USA"]
[SourceTitle "playchess.com"]
[Source "ChessBase"]
[SourceQuality "1"]
[TimeControl "5400+30"]

1. e4 {[%emt 0:00:00]} c6 {[%emt 0:00:00]} 2. d4 {[%emt 0:00:13]} d5 {[%emt 0:00:00]} 3. Nd2 {[%emt 0:00:03]} dxe4 {[%emt 0:00:01]} 4. Nxe4 {[%emt 0:00:07]} Bf5 {[%emt 0:00:08]} 5. Ng3 {[%emt 0:00:05]} Bg6 {[%emt 0:00:06]} 6. Nf3 {[%emt 0:00:16]} e6 {[%emt 0:00:16]} 7. h4 {[%emt 0:00:14]} h6 {[%emt 0:00:07]} 8. h5 {[%emt 0:00:05]} Bh7 {[%emt 0:00:04]} 9. Bd3 {[%emt 0:00:05]} Bxd3 {[%emt 0:00:06]} 10. Qxd3 {[%emt 0:00:05]} Nf6 {[%emt 0:00:06]} 11. Bd2 {[%emt 0:02:42]} Be7 {[%emt 0:00:41]} 12. O-O-O {[%emt 0:01:29]} c5 {[%emt 0:00:18]} 13. Ne4 {[%emt 0:14:25]} Nc6 {[%emt 0:00:07]} 14. Bc3 {[%emt 0:16:59]} Qd5 {[%emt 0:00:21]} 15. Nxf6+ {[%emt 0:01:15]} gxf6 {[%emt 0:00:07]} 16. dxc5 {[%emt 0:05:36]} Qxd3 {[%emt 0:00:15]} 17. Rxd3 {[%emt 0:00:04]} Rg8 {[%emt 0:00:13]} 18. g3 {[%emt 0:06:16]} Bxc5 {[%emt 0:00:23]} 19. Rd2 {[%emt 0:04:54]} Ke7 {[%emt 0:04:23]} 20. Kd1 {[%emt 0:02:29]} Nb4 {[%emt 0:16:18]} 21. Bxb4 {[%emt 0:07:11]} Bxb4 {[%emt 0:04:41]} 22. c3 {[%emt 0:00:07]} Bd6 {[%emt 0:00:53]} 23. Ke2 {[%emt 0:00:13]} f5 {[%emt 0:00:47]} 24. Rhd1 {[%emt 0:04:57]} Rad8 {[%emt 0:03:56]} 25. Nd4 {[%emt 0:04:31]} Bc7 {[%emt 0:14:44]} 26. Rd3 {[%emt 0:08:33]} Rg5 {[%emt 0:02:48]} 27. Rh1 {[%emt 0:00:28]} f4 {[%emt 0:00:39]} 28. gxf4 {[%emt 0:01:23]} Bxf4 {[%emt 0:00:08]} 29. Nf3 {[%emt 0:02:06]} Rxd3 {[%emt 0:00:15]} 30. Kxd3 {[%emt 0:00:10]} Rg2 {[%emt 0:00:39]} 31. Ke2 {[%emt 0:02:17]} Kf6 {[%emt 0:04:04]} 32. Kf1 {[%emt 0:01:22]} Rg8 {[%emt 0:00:13]} 33. Ke2 {[%emt 0:00:18]} e5 {[%emt 0:00:07]} 34. Rd1 {[%emt 0:01:14]} Ke6 {[%emt 0:02:34]} 35. Kf1 {[%emt 0:03:01]} Rc8 {[%emt 0:01:22]} 36. Ke2 {[%emt 0:00:32]} a5 {[%emt 0:01:28]} 37. Rd3 {[%emt 0:02:42]} b5 {[%emt 0:01:09]} 38. Kf1 {[%emt 0:01:35]} a4 {[%emt 0:01:34]} 39. b3 {[%emt 0:04:51]} Bc1 {[%emt 0:04:18]} 40. c4 {[%emt 0:01:01]} bxc4 {[%emt 0:18:12]} 41. Rc3 {[%emt 0:00:05]} Ba3 {[%emt 0:00:04]} 42. bxc4 {[%emt 0:00:26]} Bc5 {[%emt 0:00:46]} 43. Rc2 {[%emt 0:00:53]} Rb8 {[%emt 0:01:34]} 44. Rd2 {[%emt 0:00:32]} Rb1+ {[%emt 0:01:35]} 45. Kg2 {[%emt 0:00:22]} Rc1 {[%emt 0:00:46]} 46. Nxe5 {[%emt 0:01:14]} f6 {[%emt 0:15:50]} 47. Nd3 {[%emt 0:01:26]} Rxc4 {[%emt 0:00:02]} 48. Nxc5+ {[%emt 0:00:10]} Rxc5 {[%emt 0:00:01]} 49. Rd4 {[%emt 0:00:11]} a3 {[%emt 0:00:13]} 50. Rd3 {[%emt 0:01:46]} Ra5 {[%emt 0:00:04]} 51. f4 {[%emt 0:00:15]} Rxh5 {[%emt 0:02:11]} 52. Rxa3 {[%emt 0:00:08]} Rc5 {[%emt 0:00:04]} 53. Kg3 {[%emt 0:00:37]} Kf5 {[%emt 0:00:12]} 54. Rb3 {[%emt 0:00:16]} Ra5 {[%emt 0:00:09]} 55. a3 {[%emt 0:00:19]} h5 {[%emt 0:00:04]} 56. Rc3 {[%emt 0:00:28]} Ke4 {[%emt 0:02:16]} 57. Rc4+ {[%emt 0:00:42]} Kd3 {[%emt 0:00:18]} 58. Rc6 {[%emt 0:00:07]} f5 {[%emt 0:00:07]} 59. Kh4 {[%emt 0:00:33]} Ke4 {[%emt 0:01:08]} 60. Rc4+ {[%emt 0:00:08]} Kd3 {[%emt 0:01:04]} 61. Rc6 {[%emt 0:00:30]} Ke3 {[%emt 0:01:12]} 62. Rc4 {[%emt 0:00:21]} Kd3 {[%emt 0:01:00]} 63. Rc6 {[%emt 0:00:02]} 1/2-1/2

[Event "12th New York International 2019"]
[Site "New York"]
[Date "2019.07.12"]
[Round "4.3"]
[White "Wang, Wesley"]
[Black "Shen, Victor"]
[Result "0-1"]
[ECO "C73"]
[WhiteElo "2328"]
[BlackElo "2418"]
[Annotator "NA"]
[PlyCount "88"]
[EventDate "2019.07.11"]
[EventType "swiss"]
[EventCountry "USA"]
[SourceTitle "playchess.com"]
[Source "ChessBase"]
[SourceQuality "1"]
[TimeControl "5400+30"]

1. e4 {[%emt 0:00:00]} e5 {[%emt 0:08:11]} 2. Nf3 {[%emt 0:00:00]} Nc6 {[%emt 0:00:11]} 3. Bb5 {[%emt 0:00:00]} a6 {[%emt 0:00:30]} 4. Ba4 {[%emt 0:00:00]} d6 {[%emt 0:00:05]} 5. Bxc6+ {[%emt 0:01:58]} bxc6 {[%emt 0:00:02]} 6. d4 {[%emt 0:00:07]} f6 {[%emt 0:01:13]} 7. Nc3 {[%emt 0:03:22]} g6 {[%emt 0:00:33]} 8. Be3 {[%emt 0:02:40]} Bg7 {[%emt 0:02:34]} 9. h4 {[%emt 0:01:29]} Rb8 {[%emt 0:03:55]} 10. h5 {[%emt 0:01:15]} Rxb2 {[%emt 0:09:20]} 11. h6 {[%emt 0:01:16]} Bf8 {[%emt 0:00:10]} 12. Qd3 {[%emt 0:20:11]} Rb8 {[%emt 0:54:52]} 13. Rd1 {[%emt 0:21:39]} Qd7 {[%emt 0:01:03]} 14. Qc4 {[%emt 0:01:43]} exd4 {[%emt 0:02:14]} 15. Nxd4 {[%emt 0:04:50]} c5 {[%emt 0:00:18]} 16. Nf3 {[%emt 0:05:55]} Ne7 {[%emt 0:05:00]} 17. O-O {[%emt 0:14:46]} Qe6 {[%emt 0:00:04]} 18. Qd3 {[%emt 0:00:26]} g5 {[%emt 0:01:13]} 19. Rfe1 {[%emt 0:09:01]} Bxh6 {[%emt 0:02:02]} 20. Nd5 {[%emt 0:00:03]} Rb7 {[%emt 0:01:56]} 21. Bxc5 {[%emt 0:04:00]} dxc5 {[%emt 0:01:27]} 22. Nxc7+ {[%emt 0:00:29]} Rxc7 {[%emt 0:00:01]} 23. Qd8+ {[%emt 0:00:02]} Kf7 {[%emt 0:00:01]} 24. Qxh8 {[%emt 0:01:18]} Kg6 {[%emt 0:02:26]} 25. e5 {[%emt 0:00:39]} Bg7 {[%emt 0:00:56]} 26. Qd8 {[%emt 0:01:12]} Rd7 {[%emt 0:00:21]} 27. Qe8+ {[%emt 0:00:18]} Kh6 {[%emt 0:00:28]} 28. exf6 {[%emt 0:02:18]} Rxd1 {[%emt 0:00:19]} 29. Rxd1 {[%emt 0:00:03]} Bxf6 {[%emt 0:01:05]} 30. Re1 {[%emt 0:00:22]} Qd6 {[%emt 0:01:27]} 31. Rxe7 {[%emt 0:01:05]} Bxe7 {[%emt 0:00:06]} 32. Qxc8 {[%emt 0:00:03]} Qd1+ {[%emt 0:01:00]} 33. Kh2 {[%emt 0:00:02]} Bd6+ {[%emt 0:00:01]} 34. g3 {[%emt 0:00:27]} Qxf3 {[%emt 0:00:22]} 35. Qe6+ {[%emt 0:00:03]} Kh5 {[%emt 0:00:37]} 36. Qe8+ {[%emt 0:00:23]} Kh6 {[%emt 0:00:34]} 37. Qe6+ {[%emt 0:00:03]} Kg7 {[%emt 0:00:10]} 38. Qxd6 {[%emt 0:00:10]} Qxf2+ {[%emt 0:00:03]} 39. Kh3 {[%emt 0:00:49]} Qf5+ {[%emt 0:00:40]} 40. g4 {[%emt 0:00:05]} Qf3+ {[%emt 0:00:07]} 41. Kh2 {[%emt 0:00:24]} Qf4+ {[%emt 0:00:23]} 42. Qxf4 {[%emt 0:00:04]} gxf4 {[%emt 0:00:02]} 43. Kg2 {[%emt 0:00:06]} Kf6 {[%emt 0:00:07]} 44. Kf3 {[%emt 0:00:03]} Kg5 {[%emt 0:00:52]} 0-1

[Event "12th New York International 2019"]
[Site "New York"]
[Date "2019.07.12"]
[Round "4.4"]
[White "Brodsky, David"]
[Black "Kim, Yoon-Young"]
[Result "1-0"]
[ECO "C95"]
[WhiteElo "2432"]
[BlackElo "2322"]
[Annotator "NA"]
[PlyCount "99"]
[EventDate "2019.07.11"]
[EventType "swiss"]
[EventCountry "USA"]
[SourceTitle "playchess.com"]
[Source "ChessBase"]
[SourceQuality "1"]
[TimeControl "5400+30"]

1. e4 {[%emt 0:00:00]} e5 {[%emt 0:00:00]} 2. Nf3 {[%emt 0:00:00]} Nc6 {[%emt 0:00:00]} 3. Bb5 {[%emt 0:00:00]} a6 {[%emt 0:00:00]} 4. Ba4 {[%emt 0:00:00]} Nf6 {[%emt 0:00:00]} 5. O-O {[%emt 0:00:00]} Be7 {[%emt 0:00:05]} 6. Re1 {[%emt 0:00:00]} b5 {[%emt 0:00:15]} 7. Bb3 {[%emt 0:00:05]} d6 {[%emt 0:00:12]} 8. c3 {[%emt 0:00:08]} O-O {[%emt 0:00:15]} 9. h3 {[%emt 0:00:05]} Nb8 {[%emt 0:00:06]} 10. d4 {[%emt 0:00:15]} Nbd7 {[%emt 0:00:09]} 11. Nbd2 {[%emt 0:00:15]} Bb7 {[%emt 0:00:07]} 12. Bc2 {[%emt 0:00:07]} Re8 {[%emt 0:00:05]} 13. Nf1 {[%emt 0:00:15]} Bf8 {[%emt 0:00:07]} 14. Ng3 {[%emt 0:00:04]} g6 {[%emt 0:00:07]} 15. a4 {[%emt 0:00:30]} Nb6 {[%emt 0:00:11]} 16. b3 {[%emt 0:01:57]} bxa4 {[%emt 0:00:34]} 17. bxa4 {[%emt 0:00:08]} a5 {[%emt 0:00:12]} 18. Bd3 {[%emt 0:04:03]} Qc8 {[%emt 0:02:28]} 19. Bg5 {[%emt 0:07:30]} Nfd7 {[%emt 0:09:37]} 20. Nh4 {[%emt 0:14:28]} h6 {[%emt 0:05:16]} 21. Bd2 {[%emt 0:03:58]} Qd8 {[%emt 0:04:13]} 22. Nf3 {[%emt 0:23:43]} Bg7 {[%emt 0:01:29]} 23. h4 {[%emt 0:03:05]} Kh7 {[%emt 0:04:35]} 24. h5 {[%emt 0:00:53]} Ba6 {[%emt 0:04:14]} 25. Bxa6 {[%emt 0:01:18]} Rxa6 {[%emt 0:00:02]} 26. Qb3 {[%emt 0:01:42]} Qe7 {[%emt 0:02:36]} 27. Be3 {[%emt 0:01:50]} c6 {[%emt 0:10:22]} 28. d5 {[%emt 0:16:02]} Rc8 {[%emt 0:02:46]} 29. Nd2 {[%emt 0:01:22]} Bf6 {[%emt 0:03:00]} 30. Nc4 {[%emt 0:02:55]} c5 {[%emt 0:13:15]} 31. Qb5 {[%emt 0:02:32]} Rca8 {[%emt 0:00:42]} 32. Rab1 {[%emt 0:00:25]} Nxc4 {[%emt 0:05:34]} 33. Qxc4 {[%emt 0:00:02]} Nb6 {[%emt 0:00:09]} 34. Qa2 {[%emt 0:00:37]} Bh4 {[%emt 0:05:44]} 35. hxg6+ {[%emt 0:00:53]} fxg6 {[%emt 0:00:06]} 36. Nf1 {[%emt 0:00:05]} Qd7 {[%emt 0:08:36]} 37. Rb5 {[%emt 0:00:11]} Bd8 {[%emt 0:00:34]} 38. Reb1 {[%emt 0:01:37]} Bc7 {[%emt 0:00:37]} 39. Nd2 {[%emt 0:00:26]} Rb8 {[%emt 0:01:01]} 40. Kf1 {[%emt 0:02:49]} Kg7 {[%emt 0:00:29]} 41. f3 {[%emt 0:00:53]} Raa8 {[%emt 0:02:14]} 42. Ke2 {[%emt 0:01:57]} Ra7 {[%emt 0:02:51]} 43. Kd3 {[%emt 0:00:57]} Qc8 {[%emt 0:01:27]} 44. Nc4 {[%emt 0:01:20]} Nd7 {[%emt 0:02:19]} 45. Rxb8 {[%emt 0:00:53]} Nxb8 {[%emt 0:00:27]} 46. g4 {[%emt 0:02:20]} Nd7 {[%emt 0:01:52]} 47. Qh2 {[%emt 0:01:36]} Kf7 {[%emt 0:06:01]} 48. Qxh6 {[%emt 0:00:36]} Nf8 {[%emt 0:00:11]} 49. Qh8 {[%emt 0:00:53]} Rb7 {[%emt 0:00:41]} 50. Rh1 {[%emt 0:00:26]} 1-0

[Event "12th New York International 2019"]
[Site "New York"]
[Date "2019.07.13"]
[Round "5.1"]
[White "Rohde, Michael"]
[Black "Shen, Victor"]
[Result "1-0"]
[ECO "A09"]
[WhiteElo "2332"]
[BlackElo "2418"]
[Annotator "ChessBase"]
[PlyCount "99"]
[EventDate "2019.07.11"]
[EventType "swiss"]
[EventCountry "USA"]
[SourceTitle "playchess.com"]
[Source "ChessBase"]
[SourceQuality "1"]
[TimeControl "5400+30"]

1. Nf3 {[%emt 0:00:00]} d5 {[%emt 0:02:12]} 2. c4 {[%emt 0:00:10]} d4 {[%emt 0:00:12]} 3. e3 {[%emt 0:00:09]} Nc6 {[%emt 0:00:06]} 4. b4 {[%emt 0:01:31]} dxe3 {[%emt 0:00:08]} 5. fxe3 {[%emt 0:00:12]} Nxb4 {[%emt 0:00:07]} 6. d4 {[%emt 0:04:51]} e5 {[%emt 0:00:13]} 7. a3 {[%emt 0:03:04]} Nc6 {[%emt 0:19:42]} 8. Bb2 {[%emt 0:06:07]} e4 {[%emt 0:03:23]} 9. Nfd2 {[%emt 0:00:45]} f5 {[%emt 0:13:36]} 10. Qb3 {[%emt 0:30:10]} Qg5 {[%emt 0:01:35]} 11. c5 {[%emt 0:14:11]} Nf6 {[%emt 0:05:19]} 12. Nc4 {[%emt 0:01:57]} Nd8 {[%emt 0:20:23]} 13. Nc3 {[%emt 0:05:02]} c6 {[%emt 0:01:11]} 14. Ne2 {[%emt 0:08:46]} Nd5 {[%emt 0:01:20]} 15. h4 {[%emt 0:03:10]} Qh6 {[%emt 0:01:10]} 16. g3 {[%emt 0:01:05]} Be6 {[%emt 0:13:41]} 17. Nf4 {[%emt 0:00:24]} Nxf4 {[%emt 0:01:44]} 18. gxf4 {[%emt 0:02:59]} Be7 {[%emt 0:06:58]} 19. O-O-O {[%emt 0:04:29]} O-O {[%emt 0:00:00]} 20. Qc2 {[%emt 0:00:45]} Rb8 {[%emt 0:00:00]} 21. h5 {[%emt 0:00:50]} Bd5 {[%emt 0:00:11]} 22. Ne5 {[%emt 0:00:45]} Qe6 {[%emt 0:00:55]} 23. Bc4 {[%emt 0:00:13]} Bf6 {[%emt 0:02:00]} 24. Bxd5 {[%emt 0:00:32]} cxd5 {[%emt 0:03:22]} 25. Kb1 {[%emt 0:04:27]} Bxe5 {[%emt 0:00:49]} 26. dxe5 {[%emt 0:00:33]} Nc6 {[%emt 0:02:18]} 27. Rh2 {[%emt 0:02:51]} b6 {[%emt 0:00:00]} 28. Qc3 {[%emt 0:02:53]} Rfc8 {[%emt 0:00:00]} 29. h6 {[%emt 0:00:36]} g6 {[%emt 0:00:00]} 30. cxb6 {[%emt 0:00:47]} Rxb6 {[%emt 0:00:00]} 31. Ka1 {[%emt 0:00:12]} Nb4 {[%emt 0:01:20]} 32. Qxb4 {[%emt 0:00:24]} Rxb4 {[%emt 0:00:02]} 33. axb4 {[%emt 0:00:53]} Qa6+ {[%emt 0:01:16]} 34. Kb1 {[%emt 0:00:31]} Qb6 {[%emt 0:01:01]} 35. Rd4 {[%emt 0:00:13]} Rc4 {[%emt 0:00:31]} 36. Rxd5 {[%emt 0:00:23]} Qxe3 {[%emt 0:00:28]} 37. Rhd2 {[%emt 0:00:51]} Rc8 {[%emt 0:00:30]} 38. e6 {[%emt 0:00:22]} Qg1+ {[%emt 0:00:42]} 39. Rd1 {[%emt 0:00:48]} Qb6 {[%emt 0:00:03]} 40. Rd6 {[%emt 0:00:11]} Qc7 {[%emt 0:00:22]} 41. Rc1 {[%emt 0:00:29]} Qxd6 {[%emt 0:01:07]} 42. Rxc8+ {[%emt 0:00:08]} Qf8 {[%emt 0:00:03]} 43. Rxf8+ {[%emt 0:00:17]} Kxf8 {[%emt 0:00:01]} 44. Bf6 {[%emt 0:00:14]} a6 {[%emt 0:01:21]} 45. Kc2 {[%emt 0:00:19]} Ke8 {[%emt 0:00:06]} 46. Kc3 {[%emt 0:00:20]} Kf8 {[%emt 0:00:13]} 47. Kc4 {[%emt 0:01:05]} Ke8 {[%emt 0:00:04]} 48. Bd4 {[%emt 0:00:23]} Ke7 {[%emt 0:00:20]} 49. Kd5 {[%emt 0:00:10]} Ke8 {[%emt 0:00:06]} 50. Ke5 {[%emt 0:00:44]} 1-0

[Event "12th New York International 2019"]
[Site "New York"]
[Date "2019.07.13"]
[Round "5.3"]
[White "Paragua, Mark"]
[Black "Tremblay, Rejean"]
[Result "1-0"]
[ECO "B90"]
[WhiteElo "2503"]
[BlackElo "2192"]
[Annotator "ChessBase"]
[PlyCount "51"]
[EventDate "2019.07.11"]
[EventType "swiss"]
[EventCountry "USA"]
[SourceTitle "playchess.com"]
[Source "ChessBase"]
[SourceQuality "1"]
[TimeControl "5400+30"]

1. e4 {[%emt 0:00:00]} c5 {[%emt 0:03:58]} 2. Nf3 {[%emt 0:00:00]} d6 {[%emt 0:00:08]} 3. d4 {[%emt 0:00:00]} cxd4 {[%emt 0:00:04]} 4. Nxd4 {[%emt 0:00:00]} Nf6 {[%emt 0:00:04]} 5. Nc3 {[%emt 0:00:01]} a6 {[%emt 0:00:02]} 6. Be3 {[%emt 0:00:23]} e5 {[%emt 0:03:39]} 7. Nb3 {[%emt 0:00:18]} Be7 {[%emt 0:00:19]} 8. h3 {[%emt 0:01:58]} Be6 {[%emt 0:02:36]} 9. Qf3 {[%emt 0:02:20]} Nbd7 {[%emt 0:09:35]} 10. g4 {[%emt 0:02:56]} O-O {[%emt 0:01:13]} 11. O-O-O {[%emt 0:00:57]} Rc8 {[%emt 0:01:16]} 12. g5 {[%emt 0:02:34]} Ne8 {[%emt 0:00:06]} 13. h4 {[%emt 0:00:37]} b5 {[%emt 0:01:16]} 14. Nd5 {[%emt 0:05:09]} Bxd5 {[%emt 0:00:31]} 15. exd5 {[%emt 0:00:11]} Qc7 {[%emt 0:01:44]} 16. Bd3 {[%emt 0:00:29]} Bd8 {[%emt 0:22:15]} 17. h5 {[%emt 0:02:19]} f5 {[%emt 0:01:20]} 18. gxf6 {[%emt 0:03:35]} Rxf6 {[%emt 0:06:11]} 19. Qg4 {[%emt 0:04:24]} Nf8 {[%emt 0:10:32]} 20. Na5 {[%emt 0:10:22]} Rf7 {[%emt 0:04:55]} 21. Nc6 {[%emt 0:04:54]} Bf6 {[%emt 0:00:09]} 22. Bg6 {[%emt 0:02:19]} hxg6 {[%emt 0:02:37]} 23. hxg6 {[%emt 0:00:05]} Rd7 {[%emt 0:00:31]} 24. Rh3 {[%emt 0:01:58]} Qb7 {[%emt 0:03:39]} 25. Rdh1 {[%emt 0:00:15]} Nxg6 {[%emt 0:00:20]} 26. Qxg6 {[%emt 0:00:11]} 1-0

[Event "12th New York International 2019"]
[Site "New York"]
[Date "2019.07.13"]
[Round "5.4"]
[White "Korley, Kassa"]
[Black "Zhou, Liran"]
[Result "1/2-1/2"]
[ECO "E92"]
[WhiteElo "2437"]
[BlackElo "2314"]
[Annotator "ChessBase"]
[PlyCount "106"]
[EventDate "2019.07.11"]
[EventType "swiss"]
[EventCountry "USA"]
[SourceTitle "playchess.com"]
[Source "ChessBase"]
[SourceQuality "1"]
[TimeControl "5400+30"]

1. d4 {[%emt 0:00:00]} Nf6 {[%emt 0:00:00]} 2. c4 {[%emt 0:00:00]} g6 {[%emt 0:00:00]} 3. Nf3 {[%emt 0:01:01]} Bg7 {[%emt 0:00:02]} 4. Nc3 {[%emt 0:00:12]} O-O {[%emt 0:00:12]} 5. e4 {[%emt 0:00:04]} d6 {[%emt 0:00:09]} 6. Be2 {[%emt 0:00:11]} e5 {[%emt 0:00:14]} 7. d5 {[%emt 0:00:06]} a5 {[%emt 0:00:06]} 8. Be3 {[%emt 0:00:49]} Ng4 {[%emt 0:02:32]} 9. Bg5 {[%emt 0:00:03]} f6 {[%emt 0:00:10]} 10. Bd2 {[%emt 0:00:59]} Na6 {[%emt 0:03:56]} 11. O-O {[%emt 0:10:00]} f5 {[%emt 0:07:57]} 12. exf5 {[%emt 0:00:13]} gxf5 {[%emt 0:00:41]} 13. Ng5 {[%emt 0:03:22]} Nf6 {[%emt 0:02:28]} 14. f4 {[%emt 0:01:15]} e4 {[%emt 0:03:05]} 15. Be3 {[%emt 0:01:57]} Nc5 {[%emt 0:09:10]} 16. Nh3 {[%emt 0:00:28]} Bd7 {[%emt 0:03:35]} 17. Nf2 {[%emt 0:00:05]} Qe8 {[%emt 0:02:02]} 18. Qd2 {[%emt 0:00:06]} Kh8 {[%emt 0:03:09]} 19. Kh1 {[%emt 0:00:06]} Rg8 {[%emt 0:10:57]} 20. Rg1 {[%emt 0:00:11]} h6 {[%emt 0:14:46]} 21. g3 {[%emt 0:01:34]} c6 {[%emt 0:13:03]} 22. Rad1 {[%emt 0:00:19]} cxd5 {[%emt 0:01:04]} 23. Nxd5 {[%emt 0:07:38]} Nxd5 {[%emt 0:02:09]} 24. cxd5 {[%emt 0:00:03]} Qf7 {[%emt 0:07:41]} 25. h3 {[%emt 0:03:32]} Na4 {[%emt 0:04:19]} 26. g4 {[%emt 0:00:07]} Nxb2 {[%emt 0:00:31]} 27. Rb1 {[%emt 0:00:39]} Na4 {[%emt 0:04:13]} 28. Rxb7 {[%emt 0:00:39]} Nc3 {[%emt 0:00:49]} 29. g5 {[%emt 0:07:12]} Qxd5 {[%emt 0:02:01]} 30. Qxd5 {[%emt 0:03:05]} Nxd5 {[%emt 0:00:05]} 31. gxh6 {[%emt 0:00:02]} Bf6 {[%emt 0:01:15]} 32. Rxg8+ {[%emt 0:00:14]} Rxg8 {[%emt 0:00:07]} 33. Rxd7 {[%emt 0:00:06]} Nxe3 {[%emt 0:00:04]} 34. Rxd6 {[%emt 0:00:18]} Bh4 {[%emt 0:02:28]} 35. Nd1 {[%emt 0:00:02]} Nxd1 {[%emt 0:00:33]} 36. Bxd1 {[%emt 0:00:45]} Bg3 {[%emt 0:00:31]} 37. Bb3 {[%emt 0:00:41]} Bxf4 {[%emt 0:00:20]} 38. Bxg8 {[%emt 0:01:58]} Bxd6 {[%emt 0:00:04]} 39. Be6 {[%emt 0:00:18]} f4 {[%emt 0:00:10]} 40. Bd5 {[%emt 0:00:10]} e3 {[%emt 0:00:14]} 41. Bf3 {[%emt 0:00:04]} Kh7 {[%emt 0:00:03]} 42. h4 {[%emt 0:00:26]} Kxh6 {[%emt 0:00:04]} 43. Kg2 {[%emt 0:00:11]} a4 {[%emt 0:00:28]} 44. Kf1 {[%emt 0:00:04]} a3 {[%emt 0:00:06]} 45. Ke2 {[%emt 0:00:04]} Be7 {[%emt 0:00:03]} 46. h5 {[%emt 0:00:04]} Kg5 {[%emt 0:00:03]} 47. Kd3 {[%emt 0:00:12]} Bf8 {[%emt 0:00:08]} 48. Ke2 {[%emt 0:00:36]} Bh6 {[%emt 0:00:07]} 49. Kd3 {[%emt 0:00:09]} Kf5 {[%emt 0:00:38]} 50. Ke2 {[%emt 0:00:07]} Ke5 {[%emt 0:00:14]} 51. Kd3 {[%emt 0:00:02]} Bg7 {[%emt 0:00:31]} 52. Bg4 {[%emt 0:00:04]} Bh6 {[%emt 0:00:48]} 53. Bf3 {[%emt 0:00:04]} Kf5 {[%emt 0:00:20] Ke4+ Ke5+} 1/2-1/2

[Event "12th New York International 2019"]
[Site "New York"]
[Date "2019.07.13"]
[Round "6.4"]
[White "Huang, Gary"]
[Black "Korley, Kassa"]
[Result "0-1"]
[ECO "A07"]
[WhiteElo "2107"]
[BlackElo "2437"]
[Annotator "NA"]
[PlyCount "108"]
[EventDate "2019.07.11"]
[EventType "swiss"]
[EventCountry "USA"]
[SourceTitle "playchess.com"]
[Source "ChessBase"]
[SourceQuality "1"]
[TimeControl "5400+30"]

1. g3 {[%emt 0:00:00]} d5 {[%emt 0:00:00]} 2. Nf3 {[%emt 0:00:30]} c6 {[%emt 0:00:05]} 3. Bg2 {[%emt 0:00:06]} Nf6 {[%emt 0:00:07]} 4. O-O {[%emt 0:00:07]} Bf5 {[%emt 0:00:03]} 5. d3 {[%emt 0:00:21]} e6 {[%emt 0:00:11]} 6. Nbd2 {[%emt 0:00:16]} h6 {[%emt 0:00:04]} 7. Qe1 {[%emt 0:01:24]} Be7 {[%emt 0:00:15]} 8. b3 {[%emt 0:02:22]} a5 {[%emt 0:00:10]} 9. a3 {[%emt 0:00:38]} O-O {[%emt 0:00:36]} 10. e4 {[%emt 0:02:48]} Bh7 {[%emt 0:00:03]} 11. Bb2 {[%emt 0:02:03]} Na6 {[%emt 0:01:22]} 12. Ne5 {[%emt 0:05:40]} Nc5 {[%emt 0:00:13]} 13. f4 {[%emt 0:02:11]} Nfd7 {[%emt 0:12:40]} 14. Kh1 {[%emt 0:16:39]} Nxe5 {[%emt 0:00:05]} 15. Bxe5 {[%emt 0:00:54]} Re8 {[%emt 0:02:02]} 16. Qf2 {[%emt 0:03:16]} Nd7 {[%emt 0:00:59]} 17. Bd4 {[%emt 0:02:54]} Bf8 {[%emt 0:05:09]} 18. g4 {[%emt 0:07:34]} dxe4 {[%emt 0:00:45]} 19. Nxe4 {[%emt 0:01:12]} Bxe4 {[%emt 0:01:03]} 20. Bxe4 {[%emt 0:05:22]} Nf6 {[%emt 0:00:24]} 21. Bf3 {[%emt 0:05:09]} Nd5 {[%emt 0:00:06]} 22. g5 {[%emt 0:01:41]} g6 {[%emt 0:01:29]} 23. h4 {[%emt 0:02:32]} h5 {[%emt 0:01:33]} 24. c4 {[%emt 0:10:03]} Ne7 {[%emt 0:00:29]} 25. Be4 {[%emt 0:00:34]} Qd7 {[%emt 0:01:19]} 26. Rad1 {[%emt 0:04:02]} Bg7 {[%emt 0:06:16]} 27. Be5 {[%emt 0:01:41]} Rad8 {[%emt 0:00:31]} 28. Qc5 {[%emt 0:05:18]} Ra8 {[%emt 0:00:43]} 29. Rfe1 {[%emt 0:01:14]} Red8 {[%emt 0:01:51]} 30. Bf6 {[%emt 0:02:24]} Bf8 {[%emt 0:00:40]} 31. Qe5 {[%emt 0:00:57]} Re8 {[%emt 0:00:50]} 32. Qb2 {[%emt 0:01:53]} Nc8 {[%emt 0:00:58]} 33. Be5 {[%emt 0:02:45]} Nd6 {[%emt 0:00:19]} 34. d4 {[%emt 0:00:32]} a4 {[%emt 0:00:46]} 35. Bd3 {[%emt 0:01:21]} axb3 {[%emt 0:00:23]} 36. Qxb3 {[%emt 0:00:28]} Nf5 {[%emt 0:01:03]} 37. a4 {[%emt 0:01:53]} Nxh4 {[%emt 0:01:34]} 38. Be4 {[%emt 0:00:09]} Bd6 {[%emt 0:06:24]} 39. Rd3 {[%emt 0:00:08]} Qc7 {[%emt 0:01:59]} 40. c5 {[%emt 0:00:16]} Bxe5 {[%emt 0:00:08]} 41. dxe5 {[%emt 0:00:21]} Qa5 {[%emt 0:00:09]} 42. Re2 {[%emt 0:00:44]} Qxc5 {[%emt 0:00:22]} 43. Rc2 {[%emt 0:00:58]} Qa5 {[%emt 0:00:09]} 44. Rd4 {[%emt 0:00:53]} Qe1+ {[%emt 0:00:16]} 45. Kh2 {[%emt 0:00:02]} Rad8 {[%emt 0:02:27]} 46. Qd3 {[%emt 0:00:23]} Rxd4 {[%emt 0:01:17]} 47. Qxd4 {[%emt 0:00:01]} Ra8 {[%emt 0:02:50]} 48. Rb2 {[%emt 0:00:33]} c5 {[%emt 0:01:35]} 49. Qd3 {[%emt 0:01:36]} Nf5 {[%emt 0:10:21]} 50. Bxf5 {[%emt 0:01:26]} exf5 {[%emt 0:00:01]} 51. e6 {[%emt 0:06:38]} Qxe6 {[%emt 0:00:31]} 52. Rxb7 {[%emt 0:00:08]} Re8 {[%emt 0:02:42]} 53. Qc2 {[%emt 0:00:57]} Qe3 {[%emt 0:00:30]} 54. Qc4 {[%emt 0:00:27]} Qf2+ {[%emt 0:00:07]} 0-1